lending/lending_fUSD_20250516
["ID","MTS","AMOUNT","RATE_DAILY","PERIOD"]
[361241619,1747386673825,-400.0,0.00016438,2]
[361241620,1747386673835,-1709.63,0.00016438,2]
[361241621,1747386673844,-400.0,0.00016438,2]
[361241622,1747386673853,-400.0,0.00016438,2]
[361241623,1747386673862,-400.0,0.00016438,2]
[361241624,1747386673871,-517.28882806,0.00016438,2]
[361241625,1747386673880,-442.07,0.00016438,2]
[361241626,1747386673890,-400.0,0.00016438,2]
[361241627,1747386673899,-400.0,0.00016438,2]
[361241628,1747386673908,-623.4,0.00016438,2]
[361241629,1747386673917,-400.0,0.00016438,2]
[361241630,1747386673926,-400.0,0.00016438,2]
[361241631,1747386673935,-539.82,0.00016438,2]
[361241632,1747386673944,-400.0,0.00016438,2]
[361241633,1747386673954,-1731.73,0.00016438,2]
[361241634,1747386673963,-400.0,0.00016438,2]
[361241635,1747386673972,-200.42004728,0.00016438,2]
[361241636,1747386673981,-849.55,0.00016438,2]
[361241637,1747386673991,-1390.46,0.00016438,2]
[361241638,1747386674001,-727.51,0.00016438,2]
[361241639,1747386674010,-2247.91,0.00016438,2]
[361241640,1747386674019,-400.0,0.00016438,2]
[361241641,1747386674028,-446.98,0.00016438,2]
[361241642,1747386674037,-804.53,0.00016438,2]
[361241643,1747386674046,-409.97473067,0.00016438,2]
[361241644,1747386674055,-400.0,0.00016438,2]
[361241645,1747386674064,-400.0,0.00016438,2]
[361241646,1747386674073,-505.0038005,0.00016438,2]
[361241647,1747386674083,-400.0,0.00016438,2]
[361241648,1747386674092,-1209.6,0.00016438,2]
[361241649,1747386674101,-651.88,0.00016438,2]
[361241650,1747386674110,-400.0,0.00016438,2]
[361241651,1747386674119,-793.14,0.00016438,2]
[361241652,1747386674129,-659.77,0.00016438,2]
[361241653,1747386674138,-1586.94,0.00016438,2]
[361241654,1747386674148,-400.0,0.00016438,2]
[361241655,1747386674156,-807.73,0.00016438,2]
[361241656,1747386674166,-400.0,0.00016438,2]
[361241657,1747386674175,-2034.92,0.00016438,2]
[361241658,1747386674185,-2034.92,0.00016438,2]
[361241659,1747386674194,-2034.92,0.00016438,2]
[361241660,1747386674204,-2034.92,0.00016438,2]
[361241661,1747386674213,-2292.68,0.00016438,2]
[361241662,1747386674222,-2034.92,0.00016438,2]
[361241663,1747386674232,-2034.92,0.00016438,2]
[361241664,1747386674241,-400.0,0.00016438,2]
[361241665,1747386674251,-2034.92,0.00016438,2]
[361241666,1747386674260,-2034.92,0.00016438,2]
[361241667,1747386674270,-641.75,0.00016438,2]
[361241668,1747386674279,-2034.92,0.00016438,2]
[361241669,1747386674289,-2034.92,0.00016438,2]
[361241670,1747386674298,-460.96,0.00016438,2]
[361241671,1747386674307,-2034.92,0.00016438,2]
[361241672,1747386674317,-2034.92,0.00016438,2]
[361241673,1747386674326,-874.78,0.00016438,2]
[361241674,1747386674335,-2034.92,0.00016438,2]
[361241675,1747386674346,-400.0,0.00016438,2]
[361241676,1747386674355,-400.0,0.00016438,2]
[361241677,1747386674364,-2034.92,0.00016438,2]
[361241678,1747386674374,-910.16,0.00016438,2]
[361241679,1747386674383,-2034.92,0.00016438,2]
[361241680,1747386674393,-402.5,0.00016438,2]
[361241681,1747386674402,-2034.92,0.00016438,2]
[361241682,1747386674411,-2034.92,0.00016438,2]
[361241683,1747386674420,-2034.92,0.00016438,2]
[361241684,1747386674430,-2034.92,0.00016438,2]
[361241685,1747386674439,-2034.92,0.00016438,2]
[361241686,1747386674450,-400.0,0.00016438,2]
[361241687,1747386674459,-2034.92,0.00016438,2]
[361241688,1747386674468,-2034.92,0.00016438,2]
[361241689,1747386674478,-400.0,0.00016438,2]
[361241690,1747386674489,-1059.64,0.00016438,2]
[361241691,1747386674499,-2034.92,0.00016438,2]
[361241692,1747386674508,-476.96,0.00016438,2]
[361241693,1747386674519,-2034.93844132,0.00016438,2]
[361241694,1747386674529,-400.0,0.00016438,2]
[361241695,1747386674539,-441.19,0.00016438,2]
[361241696,1747386674548,-417.09,0.00016438,2]
[361241697,1747386674558,-1031.05,0.00016438,2]
[361241698,1747386674567,-400.0,0.00016438,2]
[361241699,1747386674576,-850.75,0.00016438,2]
[361241700,1747386674586,-538.67172398,0.00016438,2]
[361241701,1747386674596,-2089.32,0.00016438,2]
[361241702,1747386674606,-804.52,0.00016438,2]
[361241703,1747386674615,-1293.39,0.00016438,2]
[361241704,1747386674625,-779.11,0.00016438,2]
[361241705,1747386674635,-400.0,0.00016438,2]
[361241706,1747386674646,-400.0,0.00016438,2]
[361241707,1747386674655,-3190.34,0.00016438,2]
[361241708,1747386674665,-400.0,0.00016438,2]
[361241709,1747386674674,-400.0,0.00016438,2]
[361241710,1747386674683,-1910.74,0.00016438,2]
[361241711,1747386674693,-400.0,0.00016438,2]
[361241712,1747386674703,-400.0,0.00016438,2]
[361241713,1747386674713,-400.0,0.00016438,2]
[361241714,1747386674722,-400.0,0.00016438,2]
[361241715,1747386674732,-1143.59,0.00016438,2]
[361241716,1747386674741,-923.73,0.00016438,2]
[361241717,1747386674751,-400.0,0.00016438,2]
[361241718,1747386674760,-400.0,0.00016438,2]
[361241719,1747386674770,-400.0,0.00016438,2]
[361241720,1747386674779,-400.0,0.00016438,2]
[361241721,1747386674789,-400.0,0.00016438,2]
[361241722,1747386674798,-624.25,0.00016438,2]
[361241723,1747386674809,-400.0,0.00016438,2]
[361241724,1747386674818,-400.0,0.00016438,2]
[361241725,1747386674828,-400.0,0.00016438,2]
[361241726,1747386674837,-1226.29,0.00016438,2]
[361241727,1747386674847,-400.0,0.00016438,2]
[361241728,1747386674857,-400.0,0.00016438,2]
[361241729,1747386674867,-539.74,0.00016438,2]
[361241730,1747386674876,-539.74,0.00016438,2]
[361241731,1747386674886,-539.74,0.00016438,2]
[361241732,1747386674896,-539.74,0.00016438,2]
[361241733,1747386674906,-400.0,0.00016438,2]
[361241734,1747386674915,-539.74,0.00016438,2]
[361241735,1747386674925,-400.0,0.00016438,2]
[361241736,1747386674934,-539.74,0.00016438,2]
[361241737,1747386674943,-539.74,0.00016438,2]
[361241738,1747386674953,-1098.06,0.00016438,2]
[361241739,1747386674964,-539.74,0.00016438,2]
[361241740,1747386674975,-539.74,0.00016438,2]
[361241741,1747386674986,-539.74,0.00016438,2]
[361241742,1747386674997,-7400.84,0.00016438,2]
[361241743,1747386675007,-506.97,0.00016438,2]
[361241744,1747386675017,-539.74,0.00016438,2]
[361241745,1747386675028,-400.0,0.00016438,2]
[361241746,1747386675038,-539.74,0.00016438,2]
[361241747,1747386675047,-539.74,0.00016438,2]
[361241748,1747386675057,-4218.45,0.00016438,2]
[361241749,1747386675066,-539.74,0.00016438,2]
[361241750,1747386675076,-400.0,0.00016438,2]
[361241751,1747386675085,-658.39,0.00016438,2]
[361241752,1747386675094,-1290.64,0.00016438,2]
[361241753,1747386675103,-820.46,0.00016438,2]
[361241754,1747386675113,-539.74,0.00016438,2]
[361241755,1747386675123,-539.74,0.00016438,2]
[361241756,1747386675133,-450.53,0.00016438,2]
[361241757,1747386675143,-539.74,0.00016438,2]
[361241758,1747386675153,-1895.41,0.00016438,2]
[361241759,1747386675162,-400.0,0.00016438,2]
[361241760,1747386675172,-539.74,0.00016438,2]
[361241761,1747386675182,-400.0,0.00016438,2]
[361241762,1747386675191,-539.74,0.00016438,2]
[361241763,1747386675202,-539.74,0.00016438,2]
[361241764,1747386675211,-539.74,0.00016438,2]
[361241765,1747386675220,-539.74,0.00016438,2]
[361241766,1747386675230,-1354.41,0.00016438,2]
[361241767,1747386675239,-1647.74,0.00016438,2]
[361241768,1747386675249,-400.33741918,0.00016438,2]
[361241769,1747386675258,-539.74,0.00016438,2]
[361241770,1747386675267,-539.88383929,0.00016438,2]
[361241771,1747386675277,-2933.02,0.00016438,2]
[361241772,1747386675286,-400.0,0.00016438,2]
[361241773,1747386675296,-400.0,0.00016438,2]
[361241774,1747386675305,-400.0,0.00016438,2]
[361241775,1747386675314,-400.0,0.00016438,2]
[361241776,1747386675518,-1329.93,0.00016438,2]
[361241777,1747386675530,-400.0,0.00016438,2]
[361241778,1747386675540,-2775.57,0.00016438,2]
[361241779,1747386675549,-400.0,0.00016438,2]
[361241780,1747386675559,-410.38392287,0.00016438,2]
[361241781,1747386675568,-486.74,0.00016438,2]
[361241782,1747386675578,-400.0,0.00016438,2]
[361241783,1747386675587,-1524.51,0.00016438,2]
[361241784,1747386675597,-401.72832644,0.00016438,2]
[361241785,1747386675606,-400.0,0.00016438,2]
[361241786,1747386675616,-400.0,0.00016438,2]
[361241787,1747386675625,-2780.97,0.00016438,2]
[361241788,1747386675635,-400.0,0.00016438,2]
[361241789,1747386675646,-400.0,0.00016438,2]
[361241790,1747386675656,-400.0,0.00016438,2]
[361241791,1747386675666,-400.0,0.00016438,2]
[361241792,1747386675676,-2278.68,0.00016438,2]
[361241793,1747386675686,-537.41,0.00016438,2]
[361241794,1747386675695,-481.58,0.00016438,2]
[361241795,1747386675705,-400.0,0.00016438,2]
[361241796,1747386675715,-400.0,0.00016438,2]
[361241797,1747386675726,-400.0,0.00016438,2]
[361241798,1747386675735,-400.0,0.00016438,2]
[361241799,1747386675745,-405.35339137,0.00016438,2]
[361241800,1747386675755,-559.69,0.00016438,2]
[361241801,1747386675765,-400.0,0.00016438,2]
[361241802,1747386675775,-400.0,0.00016438,2]
[361241803,1747386675784,-1042.18,0.00016438,2]
[361241804,1747386675794,-400.0,0.00016438,2]
[361241805,1747386675803,-372.6553556,0.00016438,2]
[361241806,1747386675813,-400.0,0.00016438,2]
[361241807,1747386675822,-1471.11,0.00016438,2]
[361241808,1747386675832,-400.0,0.00016438,2]
[361241809,1747386675843,-637.51,0.00016438,2]
[361241810,1747386675854,-1000.0,0.00016438,2]
[361241811,1747386675864,-966.89,0.00016438,2]
[361241812,1747386675874,-400.0,0.00016438,2]
[361241813,1747386675884,-400.0,0.00016438,2]
[361241814,1747386675896,-400.0,0.00016438,2]
[361241815,1747386675905,-824.63,0.00016438,2]
[361241816,1747386675915,-400.0,0.00016438,2]
[361241817,1747386675924,-3733.2,0.00016438,2]
[361241818,1747386675934,-400.0,0.00016438,2]
[361241819,1747386675943,-269.80587727,0.00016438,2]
[361241820,1747386675953,-400.0,0.00016438,2]
[361241821,1747386675963,-1017.54,0.00016438,2]
[361241822,1747386675973,-613.31,0.00016438,2]
[361241823,1747386675982,-400.0,0.00016438,2]
[361241824,1747386675993,-400.0,0.00016438,2]
[361241825,1747386676004,-400.0,0.00016438,2]
[361241826,1747386676014,-400.0,0.00016438,2]
[361241827,1747386676023,-400.0,0.00016438,2]
[361241828,1747386676033,-1041.44,0.00016438,2]
[361241829,1747386676042,-400.0,0.00016438,2]
[361241830,1747386676052,-263.87369681,0.00016438,2]
[361241831,1747386676061,-400.0,0.00016438,2]
[361241832,1747386676071,-400.0,0.00016438,2]
[361241833,1747386676080,-456.47,0.00016438,2]
[361241834,1747386676090,-400.0,0.00016438,2]
[361241835,1747386676099,-400.0,0.00016438,2]
[361241836,1747386676109,-10424.5,0.00016438,2]
[361241837,1747386676119,-1600.1,0.00016438,2]
[361241838,1747386676128,-400.0,0.00016438,2]
[361241839,1747386676138,-400.0,0.00016438,2]
[361241840,1747386676147,-11078.46,0.00016438,2]
[361241841,1747386676156,-1754.08,0.00016438,2]
[361241842,1747386676167,-400.0,0.00016438,2]
[361241843,1747386676176,-400.0,0.00016438,2]
[361241844,1747386676185,-50.30365715,0.00016438,2]
[361241845,1747386676997,-349.69634285,0.00016438,2]
[361241846,1747386677008,-401.66,0.00016438,2]
[361241847,1747386677017,-503.68,0.00016438,2]
[361241848,1747386677028,-180.27866071,0.00016438,2]
[361241849,1747386678092,-900.0,0.000125,4]
[361241850,1747386678102,-407.3466625,0.000159,2]
[361241851,1747386678112,-292.30532626,0.00016438,2]
[361241852,1747386678122,-400.0,0.00016438,2]
[361241853,1747386678131,-400.0,0.00016438,2]
[361241854,1747386678140,-400.0,0.00016438,2]
[361241855,1747386678150,-400.0,0.00016438,2]
[361241856,1747386678160,-1270.22,0.00016438,2]
[361241857,1747386678170,-5611.03,0.00016438,2]
[361241858,1747386678180,-400.0,0.00016438,2]
[361241859,1747386678189,-400.0,0.00016438,2]
[361241860,1747386678200,-783.61,0.00016438,2]
[361241861,1747386678210,-4161.41,0.00016438,2]
[361241862,1747386678219,-400.0,0.00016438,2]
[361241863,1747386678229,-400.0,0.00016438,2]
[361241864,1747386678239,-656.02,0.00016438,2]
[361241865,1747386678249,-400.0,0.00016438,2]
[361241866,1747386678258,-400.0,0.00016438,2]
[361241867,1747386678267,-400.0,0.00016438,2]
[361241868,1747386678280,-1045.0,0.00016438,2]
[361241869,1747386678290,-1499.95,0.00016438,2]
[361241870,1747386678299,-506.49,0.00016438,2]
[361241871,1747386678308,-1158.55,0.00016438,2]
[361241872,1747386678318,-593.26,0.00016438,2]
[361241873,1747386678328,-400.0,0.00016438,2]
[361241874,1747386678338,-400.0,0.00016438,2]
[361241875,1747386678347,-400.0,0.00016438,2]
[361241876,1747386678356,-2395.09,0.00016438,2]
[361241877,1747386678365,-400.0,0.00016438,2]
[361241878,1747386678375,-623.71,0.00016438,2]
[361241879,1747386678384,-1435.55,0.00016438,2]
[361241880,1747386678395,-400.0,0.00016438,2]
[361241881,1747386678405,-400.0,0.00016438,2]
[361241882,1747386678415,-400.0,0.00016438,2]
[361241883,1747386678425,-452.15,0.00016438,2]
[361241884,1747386678434,-583.87,0.00016438,2]
[361241885,1747386678447,-400.0,0.00016438,2]
[361241886,1747386678456,-400.0,0.00016438,2]
[361241887,1747386678466,-400.0,0.00016438,2]
[361241888,1747386678475,-344.49626502,0.00016438,2]
[361241889,1747386678485,-400.0,0.00016438,2]
[361241890,1747386678495,-147435.73,0.00016438,2]
[361241891,1747386678503,-400.0,0.00016438,2]
[361241892,1747386678513,-1060.92,0.00016438,2]
[361241893,1747386678523,-400.0,0.00016438,2]
[361241894,1747386678535,-909.0,0.00016438,2]
[361241895,1747386678545,-400.0,0.00016438,2]
[361241896,1747386678554,-400.0,0.00016438,2]
[361241897,1747386678564,-400.0,0.00016438,2]
[361241898,1747386678573,-349.42464539,0.00016438,2]
[361241899,1747386678582,-7744.73,0.00016438,2]
[361241900,1747386678592,-777.94,0.00016438,2]
[361241901,1747386678603,-400.0,0.00016438,2]
[361241902,1747386678612,-400.0,0.00016438,2]
[361241903,1747386678622,-1005.61,0.00016438,2]
[361241904,1747386678632,-400.0,0.00016438,2]
[361241905,1747386678645,-609.13,0.00016438,2]
[361241906,1747386678654,-460.91491697,0.00016438,2]
[361241907,1747386678664,-2653.05,0.00016438,2]
[361241908,1747386678674,-841.86,0.00016438,2]
[361241909,1747386678684,-400.0,0.00016438,2]
[361241910,1747386678694,-400.0,0.00016438,2]
[361241911,1747386678704,-400.0,0.00016438,2]
[361241912,1747386678714,-400.0,0.00016438,2]
[361241913,1747386678724,-400.0,0.00016438,2]
[361241914,1747386678734,-400.0,0.00016438,2]
[361241915,1747386678744,-400.0,0.00016438,2]
[361241916,1747386678754,-1124.71,0.00016438,2]
[361241917,1747386678765,-1003.21,0.00016438,2]
[361241918,1747386678774,-7603.25,0.00016438,2]
[361241919,1747386678783,-400.0,0.00016438,2]
[361241920,1747386678793,-400.0,0.00016438,2]
[361241921,1747386678802,-400.0,0.00016438,2]
[361241922,1747386678812,-400.0,0.00016438,2]
[361241923,1747386678822,-400.0,0.00016438,2]
[361241924,1747386678831,-5648.09,0.00016438,2]
[361241925,1747386678842,-4156.72785737,0.00016438,2]
[361241926,1747386822904,970.8,9.575e-05,2]
[361241927,1747387119416,209.09,0.00021945,30]
[361241928,1747387197474,150.0,0.00011493,7]
[361241930,1747387563819,192.2924088,8e-05,2]
[361241955,1747387745059,45231.9875912,9.9e-05,2]
[361241956,1747387745086,4768.0124088,9.9e-05,2]
[361241993,1747387832341,-200.9771585,0.0001,2]
[361241994,1747387832350,-250.0,0.0001035,2]
[361241995,1747387832361,-400.0,0.000107,3]
[361241996,1747387832370,-900.0,0.000108,3]
[361241997,1747387832379,-183.22657255,0.00010899,2]
[361241998,1747387832389,-1400.0,0.000109,3]
[361241999,1747387832398,-178.13,0.0001099,2]
[361242000,1747387832406,-178.13,0.0001099,2]
[361242001,1747387832415,-178.13,0.0001099,2]
[361242002,1747387832424,-178.13,0.0001099,2]
[361242003,1747387832433,-178.13,0.0001099,2]
[361242004,1747387832443,-178.13,0.0001099,2]
[361242005,1747387832452,-178.13,0.0001099,2]
[361242006,1747387832461,-178.13,0.0001099,2]
[361242007,1747387832470,-178.13,0.0001099,2]
[361242008,1747387832480,-178.13,0.0001099,2]
[361242009,1747387832489,-300.0,0.00010998,2]
[361242010,1747387832498,-1200.0,0.00010998,2]
[361242011,1747387832507,-1216.68392049,0.00010999,3]
[361242012,1747387832516,-518.62070039,0.00010999,2]
[361242013,1747387832526,-172.71403539,0.00010999,2]
[361242014,1747387832536,-500.0,0.00010999,2]
[361242015,1747387832545,-500.0,0.00010999,2]
[361242016,1747387832554,-500.0,0.00010999,2]
[361242017,1747387832563,-500.0,0.00010999,2]
[361242018,1747387832573,-348.49810453,0.00010999,2]
[361242019,1747387832582,-500.0,0.00010999,2]
[361242021,1747387832592,-500.0,0.00010999,2]
[361242023,1747387832601,-500.0,0.00010999,2]
[361242024,1747387832611,-500.0,0.00010999,2]
[361242025,1747387832620,-616.0778547,0.00010999,2]
[361242026,1747387832631,-500.0,0.00010999,2]
[361242027,1747387832640,-500.0,0.00010999,2]
[361242028,1747387832650,-500.0,0.00010999,2]
[361242029,1747387832658,-500.0,0.00010999,2]
[361242030,1747387832668,-500.0,0.00010999,2]
[361242031,1747387832677,-500.0,0.00010999,2]
[361242032,1747387832687,-500.0,0.00010999,2]
[361242033,1747387832696,-500.0,0.00010999,2]
[361242034,1747387832705,-500.0,0.00010999,2]
[361242035,1747387832714,-500.0,0.00010999,2]
[361242036,1747387832723,-1829.54044445,0.00011,2]
[361242038,1747387832735,-294.62495337,0.00011,2]
[361242040,1747387832746,-351.92574701,0.00011,2]
[361242043,1747387832776,-20485.45821045,0.00011,2]
[361242044,1747387832830,-736.159057,0.00011,2]
[361242045,1747387832842,-10479.353349,0.00011,2]
[361242046,1747387832874,-4264.20280542,0.00011,2]
[361242047,1747387832886,-29460.14507273,0.00011,2]
[361242048,1747387832897,-331.14851368,0.00011,2]
[361242049,1747387832908,-2060.0,0.00011,2]
[361242050,1747387832924,-1191.78900694,0.00011,2]
[361242054,1747387838225,-2453.29972335,0.00011,2]
[361242055,1747387838334,-517.02,0.00011,2]
[361242056,1747387838346,-18472.9010663,0.00011,2]
[361242057,1747387838467,-21082.29102123,0.00011,2]
[361242059,1747387838561,-4117.42694455,0.00011,2]
[361242063,1747387840419,-2065.063,0.00011,2]
[361242064,1747387840553,-85160.85342566,0.00011,2]
[361242065,1747387840564,-401.536,0.00011,2]
[361242066,1747387840706,-1694845.41034985,0.00011,2]
[361242067,1747387840716,-250.0,0.00011,2]
[361242068,1747387840726,-282.7789479,0.00011393,2]
[361242069,1747387840735,-158.47,0.00011493,2]
[361242070,1747387840745,-17110.4,0.00011493,2]
[361242071,1747387840755,-1506.52,0.00011493,2]
[361242072,1747387840766,-293.67,0.00011493,2]
[361242074,1747387840779,-250.0,0.00011493,2]
[361242075,1747387840788,-4000.0,0.00011493,2]
[361242076,1747387840798,-150.0,0.00011493,2]
[361242077,1747387840807,-23900.0,0.00011493,2]
[361242078,1747387840818,-158.47,0.00011499,2]
[361242079,1747387840828,-1000.0,0.000115,2]
[361242080,1747387840837,-158.47,0.00011506,2]
[361242081,1747387840849,-158.47,0.00011512,2]
[361242082,1747387840860,-200.0,0.00011513,2]
[361242083,1747387840870,-158.47,0.00011519,2]
[361242084,1747387840880,-158.47,0.00011525,2]
[361242085,1747387840892,-158.47,0.00011531,2]
[361242086,1747387840901,-158.47,0.00011538,2]
[361242087,1747387840911,-158.47,0.00011544,2]
[361242088,1747387840920,-158.47,0.0001155,2]
[361242090,1747387840929,-1000.0,0.000116,2]
[361242092,1747387840939,-1397.0,0.00011647,2]
[361242094,1747387840949,-500.0,0.00011675,2]
[361242096,1747387840959,-500.0,0.00011675,2]
[361242098,1747387840968,-1000.0,0.000117,2]
[361242100,1747387840978,-1000.0,0.00011715,2]
[361242102,1747387840987,-589.79,0.00011722,2]
[361242104,1747387840998,-200.0,0.0001177,2]
[361242106,1747387841007,-500.0,0.00011771,2]
[361242108,1747387841017,-500.0,0.00011771,2]
[361242110,1747387841027,-1000.0,0.000118,2]
[361242112,1747387841037,-970.8,0.00011839,2]
[361242114,1747387841047,-1000.0,0.000119,2]
[361242116,1747387841057,-1279.89,0.00012,2]
[361242118,1747387841068,-1279.89,0.00012,2]
[361242120,1747387841077,-1279.89,0.00012,2]
[361242122,1747387841088,-1000.0,0.00012,2]
[361242124,1747387841098,-420.0,0.00012086,2]
[361242126,1747387841107,-1680.0,0.00012098,2]
[361242128,1747387841117,-1000.0,0.000121,2]
[361242130,1747387841127,-165.65,0.00012104,2]
[361242132,1747387841137,-1000.0,0.000122,2]
[361242134,1747387841146,-500.0,0.00012223,2]
[361242136,1747387841156,-1000.0,0.000123,2]
[361242138,1747387841166,-502.6618643,0.00012319,2]
[361242140,1747387841175,-1000.0,0.00012348,2]
[361242142,1747387841185,-151.0,0.00012348,2]
[361242144,1747387841195,-156.80306497,0.00012348,2]
[361242146,1747387841205,-155.0,0.00012348,2]
[361242148,1747387841214,-151.0,0.00012348,2]
[361242150,1747387841224,-845.52807468,0.00012348,2]
[361242152,1747387841233,-668.65185757,0.00012348,2]
[361242154,1747387841243,-207.4,0.00012348,2]
[361242156,1747387841253,-152.51427846,0.00012348,2]
[361242158,1747387841262,-1279.89,0.000124,2]
[361242160,1747387841272,-1000.0,0.000124,2]
[361242162,1747387841282,-1000.0,0.000125,2]
[361242164,1747387841291,-250.0,0.00012532,2]
[361242166,1747387841300,-1000.0,0.000126,2]
[361242168,1747387841310,-1000.0,0.000127,2]
[361242177,1747387841392,-975.7213348,0.00012713,2]
[361242179,1747387841401,-2242.041,0.00012789,2]
[361242181,1747387841410,-1000.0,0.000128,2]
[361242183,1747387841419,-500.0,0.00012877,2]
[361242185,1747387841429,-500.0,0.00012877,2]
[361242187,1747387841438,-470.87777928,0.00012877,2]
[361242189,1747387841447,-1215.7768,0.00012893,2]
[361242191,1747387841458,-1037.0,0.00012896,2]
[361242193,1747387841467,-1000.0,0.000129,2]
[361242195,1747387841477,-293.67,0.0001293,2]
[361242197,1747387841486,-1000.0,0.00013,2]
[361242199,1747387841495,-1000.0,0.00013179,2]
[361242201,1747387841504,-587.0,0.00013281,2]
[361242203,1747387841512,-1200.0,0.00013308,2]
[361242205,1747387841522,-237.05,0.00013321,2]
[361242207,1747387841531,-932.0,0.00013344,2]
[361242209,1747387841541,-11741.73877069,0.00013368,2]
[361242211,1747387841550,-1075.369,0.00013444,2]
[361242213,1747387841559,-805.34125131,0.000135,2]
[361242215,1747387841568,-226.7928,0.00013599,2]
[361242217,1747387841578,-1993.588,0.00013599,2]
[361242219,1747387841587,-317.6477,0.00013599,2]
[361242221,1747387841595,-500.0,0.00013599,2]
[361242223,1747387841605,-164.60145544,0.00013599,2]
[361242225,1747387841614,-343.54913722,0.00013698,2]
[361242227,1747387841623,-10449.95,0.00013699,2]
[361242229,1747387841632,-1000.0,0.00013699,2]
[361242231,1747387841641,-200.0,0.00013699,2]
[361242232,1747387841650,-500.0,0.00013699,2]
[361242234,1747387841659,-500.0,0.00013699,2]
[361242236,1747387841670,-500.0,0.00013699,2]
[361242238,1747387841680,-500.0,0.00013699,2]
[361242240,1747387841691,-500.0,0.00013699,2]
[361242242,1747387841700,-500.0,0.00013699,2]
[361242244,1747387841710,-500.0,0.00013699,2]
[361242246,1747387841719,-500.0,0.00013699,2]
[361242248,1747387841728,-500.0,0.00013699,2]
[361242251,1747387841738,-500.0,0.00013699,2]
[361242252,1747387841747,-500.0,0.00013699,2]
[361242254,1747387841756,-500.0,0.00013699,2]
[361242256,1747387841765,-500.0,0.00013699,2]
[361242258,1747387841779,-500.0,0.00013699,2]
[361242260,1747387841788,-500.0,0.00013699,2]
[361242262,1747387841798,-500.0,0.00013699,2]
[361242264,1747387841807,-500.0,0.00013699,2]
[361242266,1747387841817,-500.0,0.00013699,2]
[361242268,1747387841827,-500.0,0.00013699,2]
[361242270,1747387841836,-500.0,0.00013699,2]
[361242272,1747387841846,-500.0,0.00013699,2]
[361242274,1747387841860,-500.0,0.00013699,2]
[361242276,1747387841870,-500.0,0.00013699,2]
[361242278,1747387841879,-500.0,0.00013699,2]
[361242280,1747387841888,-500.0,0.00013699,2]
[361242282,1747387841898,-500.0,0.00013699,2]
[361242284,1747387841908,-500.0,0.00013699,2]
[361242285,1747387841916,-500.0,0.00013699,2]
[361242286,1747387841925,-500.0,0.00013699,2]
[361242287,1747387841934,-500.0,0.00013699,2]
[361242288,1747387841943,-500.0,0.00013699,2]
[361242289,1747387841953,-500.0,0.00013699,2]
[361242290,1747387841962,-500.0,0.00013699,2]
[361242291,1747387841971,-500.0,0.00013699,2]
[361242292,1747387841981,-500.0,0.00013699,2]
[361242293,1747387841990,-500.0,0.00013699,2]
[361242294,1747387841999,-500.0,0.00013699,2]